bitfinex/quotes_ETHUSD_20250210
["timestamp","ask_amount","ask_price","bid_price","bid_amount"]
[1739218043745,3.73524892,2675.8,2675.6,2.50471827]
[1739218043949,3.73692,2676.0,2675.6,2.50471827]
[1739218044140,3.73606,2676.7,2675.4,0.7628]
[1739218044141,3.73576,2676.9,2676.2,0.7628]
[1739218044359,3.73538,2677.1,2676.5,6.24090827]
[1739218044539,0.0075,2677.0,2676.5,2.50471827]
[1739218044735,0.0075,2677.2,2676.6,3.73605]
[1739218044935,0.0075,2677.2,2676.2,0.7628]
[1739218044936,0.0075,2677.2,2676.8,2.50471827]
[1739218045273,4.56116,2677.7,2677.1,6.24005827]
[1739218045447,0.8266,2677.7,2677.1,6.24002827]
[1739218045649,0.8266,2677.7,2677.1,6.24000827]
[1739218045849,0.8266,2677.7,2677.3,3.7351]
[1739218046050,0.8266,2677.7,2677.4,6.23956827]
[1739218046250,0.8266,2677.7,2677.4,2.50471827]
[1739218047045,0.0075,2677.6,2677.4,2.50471827]
[1739218047647,3.73444,2677.8,2677.0,3.73542]
[1739218047648,3.73444,2677.8,2677.2,6.80534086]
[1739218048179,0.0075,2677.7,2677.2,6.80534086]
[1739218048380,3.73468,2677.6,2677.2,3.07014086]
[1739218048544,7.47007,2677.4,2676.9,3.83294086]
[1739218048878,3.73433,2677.9,2677.2,3.07014086]
[1739218049177,3.73433,2677.9,2677.2,6.80527086]
[1739218049473,0.8266,2678.0,2677.5,3.07014086]
[1739218049674,3.74154,2678.1,2677.5,3.07014086]
[1739218050079,3.73388,2678.2,2677.8,3.07014086]
[1739218050242,0.0075,2678.2,2677.8,6.80453086]
[1739218050664,0.005,2678.4,2677.9,3.73419]
[1739218050976,0.005,2678.4,2678.0,0.7628]
[1739218051186,0.005,2678.4,2678.1,6.80401086]
[1739218051492,0.005,2678.4,2678.2,3.73377]
[1739218052175,0.005,2678.4,2678.0,0.7628]
[1739218052176,3.73865,2678.4,2678.0,0.7628]
[1739218052395,0.005,2678.4,2678.0,0.7628]
[1739218052597,3.73379,2678.3,2678.0,0.7628]
[1739218052977,0.005,2678.4,2677.9,0.73940041]
[1739218052978,3.73399,2678.1,2677.9,0.73940041]
[1739218053184,3.73385,2678.2,2677.8,3.34814086]
[1739218054515,0.005,2678.4,2677.9,3.73426]
[1739218054730,0.005,2678.4,2678.1,3.07014086]
[1739218055033,3.73393,2678.2,2677.8,3.34814086]
[1739218055191,3.7386,2678.4,2677.8,3.34814086]
[1739218055377,3.7386,2678.4,2677.9,4.49704]
[1739218055879,3.7386,2678.4,2678.1,3.07014086]
[1739218055880,0.005,2678.4,2678.1,3.07014086]
[1739218056482,0.005,2678.4,2677.9,0.7628]
[1739218056831,3.734,2678.1,2677.9,0.7628]
[1739218056974,3.73385,2678.2,2677.9,0.7628]
[1739218057202,3.73406,2678.1,2677.9,0.7628]
[1739218057945,3.73412,2678.0,2677.6,1.52481224]
[1739218058233,3.73397,2678.2,2677.6,5.25946224]
[1739218058403,3.734,2678.1,2677.6,1.52481224]
[1739218059799,0.005,2678.4,2677.6,1.52481224]
[1739218060004,0.005,2678.4,2677.6,8.99400224]
[1739218060005,3.73386,2678.2,2677.6,8.99400224]
[1739218060205,3.73386,2678.2,2677.6,5.25939224]
[1739218060507,3.73418,2678.0,2677.6,1.52481224]
[1739218060710,3.74612,2678.4,2677.6,1.52481224]
[1739218061030,3.73441,2677.8,2677.6,0.7628]
[1739218061232,3.73454,2677.7,2677.6,0.7628]
[1739218061407,3.73441,2677.8,2677.6,0.7628]
[1739218061613,3.73454,2677.7,2677.6,0.7628]
[1739218061815,3.73432,2677.9,2677.6,0.7628]
[1739218062437,3.73449,2677.8,2677.6,0.7628]
[1739218062632,3.7344,2677.8,2677.6,0.7628]
[1739218062838,3.73454,2677.7,2677.5,0.72966073]
[1739218063145,3.73482,2677.5,2677.3,0.8051]
[1739218063507,3.73468,2677.6,2677.3,0.8051]
[1739218063717,3.73496,2677.4,2677.1,1.0841]
[1739218063918,3.73524,2677.2,2677.1,0.8051]
[1739218065601,0.752,2677.3,2676.6,0.8051]
[1739218065950,0.752,2677.3,2676.6,4.54290877]
[1739218065951,3.73556,2677.0,2676.6,4.54290877]
[1739218066433,7.47068,2677.2,2676.6,4.54290877]
[1739218066604,3.73531,2677.2,2676.6,4.54290877]
[1739218066804,3.73555,2677.0,2676.6,1.54290877]
[1739218067140,3.73538,2677.1,2676.6,1.54290877]
[1739218067700,0.0075,2677.4,2676.6,1.54290877]
[1739218067928,3.73555,2677.0,2676.6,1.54290877]
[1739218068141,3.73573,2676.9,2676.6,1.54290877]
[1739218068742,3.73555,2677.0,2676.6,1.54290877]
[1739218069059,3.73501,2677.4,2676.9,3.0]
[1739218069235,3.73436,2677.9,2677.2,4.50863]
[1739218069399,3.73449,2677.8,2677.2,3.7734]
[1739218069603,3.73449,2677.8,2677.3,35.0]
[1739218070214,0.0075,2678.2,2677.5,0.7734]
[1739218070419,3.73427,2677.9,2677.5,0.7734]
[1739218070642,3.73429,2677.9,2677.5,0.7734]
[1739218070936,3.73456,2677.7,2677.5,0.7734]
[1739218071135,3.73456,2677.7,2677.3,35.0]
[1739218071136,3.73476,2677.6,2677.2,0.7734]
[1739218071338,3.73494,2677.5,2677.2,1.51574158]
[1739218071540,3.7351,2677.3,2677.2,0.7734]
[1739218072139,3.73493,2677.5,2677.2,0.7734]
[1739218072346,3.73498,2677.4,2677.2,0.7734]
[1739218072840,3.73496,2677.4,2677.2,0.7734]
[1739218073544,0.0075,2677.7,2676.7,0.7734]
[1739218073839,3.73525,2677.2,2676.8,0.278]
[1739218074205,3.73525,2677.2,2676.8,1.0225293]
[1739218074641,3.73539,2677.1,2676.8,0.7445293]
[1739218075339,7.47087,2677.1,2676.8,0.7445293]
[1739218075636,3.73557,2677.0,2676.8,0.7445293]
[1739218076152,0.0075,2677.7,2676.7,0.7734]
[1739218076153,3.73573,2676.9,2676.7,0.7734]
[1739218076851,7.47149,2676.9,2676.7,0.7734]
[1739218077004,3.73573,2676.9,2676.7,0.7734]
[1739218077208,3.73573,2676.9,2676.5,1.5076852]
[1739218077542,3.73592,2676.8,2676.5,1.5076852]
[1739218077741,3.73573,2676.9,2676.5,1.5076852]
[1739218077907,3.73587,2676.8,2676.5,1.5076852]
[1739218078244,3.73573,2676.9,2676.5,1.5076852]
[1739218078620,0.0075,2677.1,2676.5,1.5076852]
[1739218078819,3.73582,2676.8,2676.5,1.5076852]
[1739218079410,3.73567,2676.9,2676.5,1.5076852]
[1739218079623,3.73579,2676.9,2676.5,1.5076852]
[1739218079828,3.73585,2676.8,2676.5,1.5076852]
[1739218080027,3.73579,2676.9,2676.5,1.5076852]
[1739218080231,3.73546,2677.1,2676.5,1.5076852]
[1739218080861,3.73567,2676.9,2676.5,1.5076852]
[1739218081660,3.73589,2676.8,2676.5,1.5076852]
[1739218081876,3.73567,2676.9,2676.5,4.5076852]
[1739218082059,3.73608,2676.6,2676.5,0.7734]
[1739218082874,3.73594,2676.7,2676.5,0.7734]
[1739218083440,3.73587,2676.8,2676.5,0.7734]
[1739218083761,3.73548,2677.1,2676.5,0.7734]
[1739218083959,3.73527,2677.2,2676.6,3.77336877]
[1739218084553,3.73566,2677.0,2676.5,0.7734]
[1739218084783,3.73542,2677.1,2676.5,0.7734]
[1739218085077,3.73553,2677.0,2676.5,0.7734]
[1739218085228,3.73543,2677.1,2676.5,0.7734]
[1739218085430,7.47094,2677.1,2676.5,4.50961]
[1739218085676,3.73558,2677.0,2676.5,0.7734]
[1739218085897,3.73543,2677.1,2676.5,0.7734]
[1739218086030,3.73543,2677.1,2676.5,4.50961]
[1739218086482,7.4709,2677.1,2676.5,4.50961]
[1739218086846,3.73543,2677.1,2676.5,4.50961]
[1739218087047,7.47095,2677.1,2676.5,4.50961]
[1739218087274,3.73543,2677.1,2676.5,7.50961]
[1739218087436,0.0075,2677.4,2676.6,7.50766]
[1739218087637,3.73499,2677.4,2676.8,3.73573]
[1739218087870,3.73499,2677.4,2677.0,0.7717]
[1739218088745,3.7351,2677.3,2677.0,0.7717]
[1739218089761,3.73497,2677.4,2677.0,0.7717]
[1739218090564,3.73485,2677.5,2677.0,0.7717]
[1739218090745,3.73531,2677.2,2677.1,0.75736555]
[1739218090943,3.73513,2677.3,2677.1,0.75736555]
[1739218094157,3.73498,2677.4,2677.1,0.75736555]
[1739218095880,3.73469,2677.6,2677.1,0.75736555]
[1739218096043,3.73482,2677.5,2677.1,0.75736555]
[1739218096370,3.73423,2678.0,2677.5,0.7717]
[1739218096574,3.73443,2677.8,2677.5,0.7717]
[1739218097460,3.73402,2678.1,2677.5,0.7717]
[1739218097647,3.73468,2677.6,2677.4,0.55]
[1739218097848,0.7915,2678.2,2677.3,0.7717]
[1739218097849,3.73438,2677.9,2677.3,0.7717]
[1739218098054,3.73384,2678.3,2677.8,3.73434]
[1739218098374,3.73384,2678.3,2677.9,0.7717]
[1739218098792,3.73866,2678.4,2678.0,0.55]
[1739218098997,0.005,2678.4,2678.0,0.55]
[1739218099313,0.005,2678.4,2678.3,0.8291]
[1739218100003,0.005,2678.4,2678.3,5.11281]
[1739218100203,0.005,2678.4,2678.3,1.3791]
[1739218100405,0.005,2678.4,2678.3,5.11281]
[1739218101272,3.73253,2679.2,2678.5,0.8291]
[1739218101761,3.73263,2679.1,2678.5,4.5625]
[1739218101961,3.73253,2679.2,2678.6,3.7332]
[1739218102909,7.46449,2679.4,2678.8,3.73297]
[1739218103393,0.0075,2679.5,2678.9,3.73278]
[1739218103710,3.73223,2679.4,2678.9,3.73287]
[1739218103882,0.0075,2679.5,2678.9,3.73287]
[1739218104080,3.73961,2679.5,2678.9,3.73287]
[1739218104481,3.73221,2679.4,2678.8,3.73297]
[1739218104675,0.0075,2679.5,2678.7,0.8291]
[1739218104876,0.0075,2679.5,2679.0,3.73272]
[1739218105076,3.73956,2679.5,2679.0,3.73272]
[1739218105701,0.0075,2679.5,2678.7,0.8291]
[1739218105877,3.73234,2679.3,2678.7,0.8291]
[1739218106078,3.73245,2679.2,2678.9,0.73701753]
[1739218106700,3.73234,2679.3,2678.9,0.73701753]
[1739218106921,3.73252,2679.2,2678.9,0.73701753]
[1739218107813,3.73273,2679.0,2678.9,0.73701753]
[1739218107978,3.7326,2679.1,2678.4,0.8291]
[1739218107979,4.5048,2679.1,2678.4,0.8291]
[1739218108177,3.73319,2678.7,2678.4,0.8291]
[1739218108712,3.7333,2678.6,2678.4,0.8291]
[1739218108883,3.7333,2678.6,2678.5,0.74412522]
[1739218109079,3.73277,2679.0,2678.1,0.8291]
[1739218109080,3.7338,2678.3,2678.1,0.8291]
[1739218109516,3.7338,2678.3,2678.0,0.2814519]
[1739218110426,3.73393,2678.2,2678.0,0.2814519]
[1739218110722,3.73385,2678.2,2678.1,0.76071281]
[1739218111743,3.73372,2678.3,2678.1,0.76071281]
[1739218112778,3.73385,2678.2,2678.1,0.76071281]
[1739218113002,3.73399,2678.1,2678.0,0.2814519]
[1739218113279,4.56309,2678.1,2678.0,0.2814519]
[1739218116718,4.57059,2678.1,2678.0,0.2814519]
[1739218125731,4.57809,2678.1,2678.0,0.2814519]
[1739218125907,4.57809,2678.1,2678.0,1.9e-06]
[1739218132863,7.57809,2678.1,2678.0,1.9e-06]
[1739218134640,3.73566,2676.9,2676.8,0.7611]
[1739218137043,3.73554,2677.0,2676.8,0.7611]
[1739218137247,7.47117,2677.0,2676.8,0.7611]
[1739218137740,3.73554,2677.0,2676.8,0.7611]
[1739218137936,3.73566,2676.9,2676.8,0.7611]
[1739218138338,3.73594,2676.7,2676.6,0.7611]
[1739218142053,3.73567,2676.9,2676.6,0.7611]
[1739218143975,7.47144,2676.9,2676.6,0.7611]
[1739218144476,3.73567,2676.9,2676.6,0.7611]
[1739218144658,7.47142,2676.9,2676.6,0.7611]
[1739218144982,4.55963,2677.4,2676.2,0.55]
[1739218144983,3.73594,2676.7,2676.2,0.55]
[1739218145154,3.73594,2676.7,2676.3,0.8094]
[1739218145351,3.73636,2676.4,2676.3,0.8094]
[1739218145659,4.55628,2676.9,2676.3,0.8094]
[1739218145660,3.73622,2676.5,2676.3,0.8094]
[1739218145845,3.73608,2676.6,2676.3,0.8094]
[1739218146191,3.73595,2676.7,2676.3,0.8094]
[1739218146385,3.73593,2676.8,2676.3,4.54584]
[1739218146569,3.73595,2676.7,2676.3,4.54584]
[1739218146751,7.47197,2676.7,2676.3,0.8094]
[1739218147262,3.73595,2676.7,2676.3,0.8094]
[1739218149081,3.73587,2676.8,2676.3,0.8094]
[1739218149283,4.55637,2676.9,2676.3,0.8094]
[1739218149484,3.73583,2676.8,2676.3,4.54582]
[1739218150395,3.73583,2676.8,2676.4,3.73633]
[1739218150552,3.73583,2676.8,2676.3,4.54589]
[1739218150751,7.47175,2676.8,2676.3,4.54589]
[1739218151480,3.73583,2676.8,2676.3,0.8094]
[1739218151786,3.73598,2676.7,2676.3,0.8094]
[1739218153358,3.73583,2676.8,2676.3,4.54583]
[1739218153661,0.8206,2677.5,2676.9,0.8094]
[1739218153859,3.73516,2677.3,2676.9,0.8094]
[1739218154073,3.74275,2677.2,2676.9,0.8094]
[1739218154757,4.55545,2677.5,2676.9,4.54498]
[1739218154959,3.73485,2677.5,2677.1,3.73537]
[1739218155298,0.0075,2677.6,2677.3,3.73508]
[1739218155667,0.0075,2677.6,2677.2,0.8094]
[1739218155883,0.015,2677.9,2677.2,0.8094]
[1739218156086,0.0075,2677.5,2677.2,0.8094]
[1739218156395,3.73476,2677.6,2677.2,0.8094]
[1739218158559,3.7345,2677.8,2677.2,0.8094]
[1739218158797,3.7345,2677.8,2677.2,4.54451]
[1739218158965,0.0075,2677.9,2677.2,4.54451]
[1739218159165,3.73458,2677.7,2677.2,0.8094]
[1739218159489,3.73475,2677.6,2677.2,0.8094]
[1739218160065,3.73458,2677.7,2677.2,0.8094]
[1739218160602,3.73436,2677.9,2677.2,0.84674872]
[1739218160804,3.73436,2677.9,2677.2,4.58196872]
[1739218160978,3.73436,2677.9,2677.4,3.73496]
[1739218161862,0.7803,2678.2,2677.2,5.30730397]
[1739218161863,3.73387,2678.2,2677.6,3.73456]
[1739218162067,3.73387,2678.2,2677.7,0.7639]
[1739218162579,3.73387,2678.2,2677.7,0.80124384]
[1739218162777,3.73387,2678.2,2677.7,4.49844]
[1739218164205,3.73387,2678.2,2677.8,0.7639]
[1739218165908,3.74818,2678.7,2677.8,0.7639]
[1739218166106,3.73423,2678.0,2677.8,0.7639]
[1739218167401,7.46848,2678.0,2677.8,0.7639]
[1739218167705,3.73423,2678.0,2677.8,0.7639]
[1739218167913,3.73426,2677.9,2677.8,0.7639]
[1739218168789,3.73453,2677.8,2677.5,0.7639]
[1739218168990,0.0075,2678.3,2677.3,0.7639]
[1739218168991,3.73468,2677.6,2677.3,0.7639]
[1739218169284,3.73496,2677.4,2677.3,0.7639]
[1739218169614,3.73524,2677.3,2677.1,0.7639]
[1739218169781,3.73524,2677.2,2677.1,0.7639]
[1739218170692,3.73524,2677.3,2677.1,0.7639]
[1739218171615,3.73524,2677.2,2677.1,0.7639]
[1739218172006,3.73548,2677.1,2676.7,0.7639]
[1739218172314,3.73553,2677.0,2676.7,0.7639]
[1739218172909,3.73556,2677.0,2676.7,0.7639]
[1739218173109,3.73548,2677.1,2676.7,0.7639]
[1739218173301,3.73553,2677.0,2676.7,0.7639]
[1739218175117,7.47096,2677.1,2676.7,0.7639]
[1739218175493,3.73559,2677.0,2676.7,0.7639]
[1739218176220,7.47098,2677.1,2676.7,0.7639]
[1739218176516,3.73552,2677.0,2676.7,0.7639]
[1739218180690,3.73567,2676.9,2676.7,0.7639]
[1739218180883,3.73548,2677.1,2676.7,0.7639]
[1739218181482,4.55119,2677.3,2676.7,4.49982]
[1739218181707,3.73532,2677.2,2676.7,4.49982]
[1739218181902,0.816,2677.6,2676.8,0.0373557]
[1739218182214,3.73497,2677.4,2676.9,3.73559]
[1739218182718,3.73512,2677.3,2676.8,4.56187]
[1739218183384,0.816,2677.6,2676.8,0.8261]
[1739218183583,3.73485,2677.5,2677.0,3.73545]
[1739218183786,3.73494,2677.5,2676.9,3.77289192]
[1739218183985,3.73497,2677.4,2676.9,3.73554]
[1739218184199,3.73512,2677.3,2676.8,4.56189]
[1739218184905,3.73497,2677.4,2676.9,3.73563]
[1739218186094,3.73497,2677.4,2677.0,3.73552]
[1739218186435,3.73497,2677.4,2676.9,3.73565]
[1739218188587,3.73497,2677.4,2677.0,3.7355]
[1739218189139,3.73478,2677.6,2677.1,0.8162]
[1739218189439,3.73448,2677.8,2677.2,3.73524]
[1739218189637,0.7597,2677.9,2677.2,3.73524]
[1739218189638,0.0075,2677.9,2677.2,3.73524]
[1739218189842,0.0075,2677.9,2677.6,3.73465]
[1739218191610,3.73415,2678.0,2677.6,3.73465]
[1739218191939,0.0075,2677.9,2677.5,4.55102]
[1739218193642,4.4937,2678.1,2677.6,3.73462]
[1739218194241,0.0075,2678.0,2677.6,3.73462]
[1739218194441,3.74164,2678.0,2677.6,3.73462]
[1739218194641,3.73377,2678.3,2677.7,3.73443]
[1739218194878,3.73392,2678.2,2677.6,3.73455]
[1739218195076,0.7597,2678.3,2677.6,3.73461]
[1739218195383,3.73399,2678.1,2677.6,3.77193254]
[1739218195757,7.46806,2678.1,2677.6,3.77193254]
[1739218195971,7.46806,2678.1,2677.6,3.73459]
[1739218196274,3.73399,2678.1,2677.6,3.73459]
[1739218196424,3.73414,2678.0,2677.6,3.73459]
[1739218197430,7.46807,2678.1,2677.6,3.73459]
[1739218198028,3.73414,2678.0,2677.6,3.73459]
[1739218198229,3.73414,2678.0,2677.6,4.48653659]
[1739218201772,3.73414,2678.0,2677.5,0.8162]
[1739218201773,3.73466,2677.7,2677.5,0.8162]
[1739218202068,3.73454,2677.8,2677.2,4.488228]
[1739218202253,3.73419,2678.0,2677.4,0.8162]
[1739218202571,0.7597,2678.4,2677.7,3.73443]
[1739218202757,3.73386,2678.2,2677.7,3.73443]
[1739218202935,3.73384,2678.3,2677.7,3.73443]
[1739218203131,0.0075,2678.3,2677.8,3.73436]
[1739218203461,3.734,2678.1,2677.6,6.26761767]
[1739218204330,3.734,2678.1,2677.6,3.73458]
[1739218204832,7.4681,2678.1,2677.6,3.73458]
[1739218205062,3.734,2678.1,2677.6,4.46925068]
[1739218205270,3.734,2678.1,2677.6,8.20385068]
[1739218205669,3.734,2678.1,2677.6,4.46925068]
[1739218206034,7.46811,2678.1,2677.6,4.46925068]
[1739218206235,3.73454,2677.7,2677.6,0.73467068]
[1739218206436,3.73436,2677.9,2677.6,0.73467068]
[1739218206756,3.73406,2678.1,2677.6,0.73467068]
[1739218206958,3.73414,2678.0,2677.6,0.73467068]
[1739218207568,3.73428,2677.9,2677.6,0.73467068]
[1739218207975,3.73423,2678.0,2677.6,0.73467068]
[1739218208469,3.73424,2678.0,2677.6,0.73467068]
[1739218211441,3.73361,2678.4,2677.9,3.73419]
[1739218211739,3.73358,2678.4,2677.9,6.2298852]
[1739218212880,3.73358,2678.4,2677.8,0.7516]
[1739218212881,3.73384,2678.3,2677.8,0.7516]
[1739218213042,3.73384,2678.3,2677.8,4.486]
[1739218213582,3.73377,2678.3,2677.8,4.486]
[1739218214883,3.73386,2678.2,2677.8,0.7516]
[1739218215086,0.8187,2678.2,2677.6,1.48627068]
[1739218215275,3.73409,2678.1,2677.6,1.48627068]
[1739218215481,4.55256,2678.2,2677.6,1.48627068]
[1739218215699,3.73406,2678.1,2677.7,3.73454]
[1739218217767,3.73414,2678.0,2677.6,1.48627068]
[1739218218688,3.73436,2677.9,2677.6,1.48627068]
[1739218220189,3.73414,2678.0,2677.6,1.48627068]
[1739218220493,3.73414,2678.0,2677.6,5.22094068]
[1739218220995,3.734,2678.1,2677.7,3.73451]
[1739218224185,0.8037,2678.5,2678.0,3.73404]
[1739218224458,0.0075,2678.7,2678.1,0.7867]
[1739218224659,3.73363,2678.4,2678.1,0.7867]
[1739218224982,4.53658,2678.9,2678.5,3.73333]
[1739218224983,0.8037,2678.9,2678.5,3.73333]
[1739218225166,0.8788464,2679.1,2678.6,0.7867]
[1739218225167,1.6825464,2679.1,2678.6,0.7867]
[1739218225368,0.8788464,2679.1,2678.7,3.77035328]
[1739218225577,3.73257,2679.2,2678.7,3.73302]
[1739218225880,0.8037,2679.4,2678.6,0.7867]
[1739218226071,3.73315,2678.7,2678.3,0.7867]
[1739218226670,3.73334,2678.6,2678.3,0.7867]
[1739218226868,4.53685,2678.7,2678.3,0.7867]
[1739218228184,0.8037,2678.7,2678.3,0.7867]
[1739218228496,3.73336,2678.6,2678.2,0.76197025]
[1739218229190,3.73344,2678.5,2678.2,0.76197025]
[1739218229398,3.73343,2678.5,2678.2,0.76197025]
[1739218229904,3.73389,2678.2,2677.9,0.7867]
[1739218230229,0.0075,2678.6,2677.9,0.7867]
[1739218230500,3.73408,2678.1,2677.9,0.7867]
[1739218231805,0.8037,2678.3,2677.7,0.7867]
[1739218232105,0.0075,2678.2,2677.6,0.74984211]
[1739218232308,3.73421,2678.0,2677.6,0.74984211]
[1739218232974,3.73407,2678.1,2677.6,4.48446211]
[1739218233192,3.73373,2678.3,2677.9,0.7867]
[1739218233487,3.73392,2678.2,2677.9,0.7867]
[1739218233686,3.73373,2678.3,2677.6,8.21905211]
[1739218233687,3.73412,2678.0,2677.7,0.7867]
[1739218237200,3.73394,2678.2,2677.8,0.3741]
[1739218237406,3.73406,2678.1,2677.7,0.7867]
[1739218237708,3.73394,2678.2,2677.7,0.7867]
[1739218237909,3.73415,2678.0,2677.7,0.7867]
[1739218238311,7.46841,2678.0,2677.7,0.7867]
[1739218238677,7.46841,2678.0,2677.5,3.73473]
[1739218238678,3.73415,2678.0,2677.5,0.7867]
[1739218239479,3.73441,2677.8,2677.5,1.54522839]
[1739218239879,7.46892,2677.8,2677.5,1.54522839]
[1739218240116,3.73455,2677.7,2677.5,1.54522839]
[1739218240839,3.73455,2677.7,2677.5,0.75852839]
[1739218242019,3.73268048,2677.7,2677.5,0.75852839]
[1739218245719,3.7343,2677.9,2677.5,0.75852839]
[1739218245921,3.73442,2677.8,2677.5,0.75852839]
[1739218246708,3.73457,2677.7,2677.5,0.75852839]
[1739218247707,3.73468,2677.6,2677.5,0.75852839]
[1739218248016,0.8037,2677.7,2677.1,0.7867]
[1739218248221,3.7349,2677.5,2677.1,0.7867]
[1739218248598,3.73468,2677.6,2677.1,0.7867]
[1739218248781,0.8037,2677.7,2677.1,0.7867]
[1739218248782,3.73493,2677.5,2677.1,0.7867]
[1739218248986,3.73483,2677.5,2677.1,0.7867]
[1739218249911,3.73483,2677.5,2677.1,1.51616145]
[1739218250125,7.46977,2677.5,2677.1,1.51616145]
[1739218250422,3.73483,2677.5,2677.1,1.51616145]
[1739218251216,7.46974,2677.5,2677.1,1.51616145]
[1739218251717,3.73483,2677.5,2677.1,1.51616145]
[1739218251927,3.73497,2677.4,2677.1,1.51616145]
[1739218254524,3.73484,2677.5,2677.1,1.51616145]
[1739218255224,3.73454,2677.8,2677.3,3.73505]
[1739218255409,7.46908,2677.8,2677.3,3.73505]
[1739218256003,3.73454,2677.8,2677.3,3.73505]
[1739218256699,7.46906,2677.8,2677.3,3.73505]
[1739218257827,3.73455,2677.7,2677.3,3.73505]
[1739218258604,3.73455,2677.7,2677.2,3.73517]
[1739218259007,3.73455,2677.7,2677.2,3.73516]
[1739218259207,0.8194,2678.0,2677.1,1.51616145]
[1739218259430,3.73437,2677.9,2677.4,3.73487]
[1739218259798,3.73437,2677.9,2677.5,0.7741]
[1739218259999,3.7342,2678.0,2677.5,4.50891]
[1739218260200,3.73426,2677.9,2677.5,4.50891]
[1739218261725,3.73426,2677.9,2677.5,0.7741]
[1739218262501,3.73434,2677.9,2677.5,0.7741]
[1739218264104,3.73423,2678.0,2677.5,0.7741]
[1739218264344,3.73423,2678.0,2677.6,3.73467]
[1739218265136,3.73421,2678.0,2677.5,4.50891]
[1739218266638,3.73435,2677.9,2677.5,0.7741]
[1739218268044,3.73435,2677.9,2677.5,4.50889]
[1739218271432,3.7415,2678.1,2677.6,3.73467]
[1739218271433,3.73416,2678.0,2677.6,3.73467]
[1739218273355,0.8184,2678.4,2677.6,0.03734706]
[1739218273556,3.7319,2679.6,2678.1,0.7951]
[1739218273859,3.73331,2678.6,2678.1,4.52902]
[1739218274855,3.73331,2678.6,2678.1,0.7951]
[1739218275748,7.46671,2678.6,2678.1,0.7951]
[1739218275955,3.73331,2678.6,2678.1,0.7951]
[1739218276157,3.73396,2678.2,2677.8,1.0691]
[1739218276462,3.73408,2678.1,2677.8,1.0691]
[1739218277549,3.73376,2678.3,2677.8,1.0691]
[1739218277745,0.0075,2678.4,2677.8,1.0691]
[1739218277955,3.73424,2678.0,2677.8,1.0691]
[1739218278527,7.46845,2678.0,2677.8,1.0691]
[1739218278838,7.46845,2678.0,2677.8,0.274]
[1739218279034,3.73426,2677.9,2677.8,0.274]
[1739218280072,3.73421,2678.0,2677.8,0.274]
[1739218280274,3.73426,2677.9,2677.8,0.274]
[1739218280971,3.73467,2677.7,2677.5,0.74889817]
[1739218281272,3.73467,2677.7,2677.4,0.7954]
[1739218281574,3.73465,2677.7,2677.4,0.7954]
[1739218281751,3.73482,2677.5,2677.4,0.7954]
[1739218282650,3.73482,2677.5,2677.1,0.7954]
[1739218284079,3.73482,2677.5,2677.1,1.5471785]
[1739218284281,7.46986,2677.5,2677.1,0.7954]
[1739218284495,3.73532,2677.2,2676.9,0.73525507]
[1739218284798,3.73505,2677.4,2676.9,4.47089507]
[1739218284955,3.73511,2677.3,2676.9,4.47089507]
[1739218285449,3.73505,2677.4,2676.9,4.47089507]
[1739218285750,7.47013,2677.4,2676.9,4.47089507]
[1739218286085,3.73469,2677.6,2677.0,0.7954]
[1739218286386,3.74171,2678.0,2677.3,3.73497]
[1739218286548,3.73428,2677.9,2677.4,3.73486]
[1739218286743,0.7878,2678.1,2677.5,3.73481]
[1739218286971,3.734,2678.1,2677.6,3.73458]
[1739218287180,0.7878,2678.3,2677.5,3.73481]
[1739218287370,3.73385,2678.2,2677.6,3.73459]
[1739218287571,3.73385,2678.2,2677.5,3.73481]
[1739218287965,3.73385,2678.2,2677.6,3.73466]
[1739218288305,3.73385,2678.2,2677.5,3.73481]
[1739218288442,7.46782,2678.2,2677.7,3.73451]
[1739218288649,3.73385,2678.2,2677.7,3.73451]
[1739218289292,0.7878,2678.5,2678.0,3.73404]
[1739218289493,3.73333,2678.6,2678.0,7.46808]
[1739218289692,3.73333,2678.6,2678.1,3.73395]
[1739218289878,3.73333,2678.6,2678.2,0.7954]
[1739218291184,3.73306,2678.8,2678.3,3.73369]
[1739218291481,3.73295,2678.9,2678.4,3.73355]
[1739218291716,3.73302,2678.8,2678.2,4.52921]
[1739218291869,3.73302,2678.8,2678.2,4.52914]
[1739218292052,3.73302,2678.8,2678.2,8.26291]
[1739218292252,3.73302,2678.8,2678.2,5.29280694]
[1739218292688,3.73281,2679.0,2678.2,1.55906694]
[1739218292881,3.73281,2679.0,2678.3,3.73371]
[1739218293294,3.73281,2679.0,2678.3,7.46742]
[1739218293469,3.73296,2678.9,2678.3,3.73371]
[1739218295494,3.73305,2678.8,2678.3,3.73371]
[1739218296172,3.73325,2678.7,2678.2,5.29289694]
[1739218296375,3.73305,2678.8,2678.3,3.7337]
[1739218298063,3.73305,2678.8,2678.2,1.55906694]
[1739218298363,3.73305,2678.8,2678.2,5.29277694]
[1739218298673,7.46618,2678.8,2678.2,5.29277694]
[1739218298874,3.73305,2678.8,2678.3,3.73369]
[1739218299077,3.73327,2678.7,2678.2,1.55906694]
[1739218299372,3.73327,2678.7,2678.2,5.29282694]
[1739218299599,3.73305,2678.8,2678.3,3.73367]
[1739218300360,3.73305,2678.8,2678.2,1.55906694]
[1739218300798,3.73305,2678.8,2678.3,3.7337]
[1739218303097,3.73305,2678.8,2678.2,1.55906694]
[1739218303264,3.73305,2678.8,2678.3,3.7337]
[1739218304178,3.73305,2678.8,2678.3,3.73371]
[1739218305115,0.7953,2679.1,2678.3,3.73371]